fUSD/lending_fUSD_20240828
["ID","MTS","AMOUNT","RATE_DAILY","PERIOD"]
[336507754,1724886070170,-500.0,0.00038356,120]
[336507755,1724886070196,-858.32,0.00038356,120]
[336507756,1724886070222,-1720.45,0.00038356,120]
[336507757,1724886070248,-474.70060558,0.00038356,120]
[336507758,1724886070278,-500.0,0.00038356,120]
[336507759,1724886070306,-900.9,0.00038356,120]
[336507760,1724886070332,-500.0,0.00038356,120]
[336507761,1724886070363,-2931.85,0.00038356,120]
[336507762,1724886070389,-500.0,0.00038356,120]
[336507763,1724886070416,-500.0,0.00038356,120]
[336507764,1724886070441,-515.09,0.00038356,120]
[336507765,1724886070468,-2222.34,0.00038356,120]
[336507766,1724886070492,-500.0,0.00038356,120]
[336507767,1724886070518,-500.0,0.00038356,120]
[336507768,1724886070543,-500.0,0.00038356,120]
[336507769,1724886070569,-4021.68,0.00038356,120]
[336507770,1724886070597,-500.0,0.00038356,120]
[336507771,1724886070623,-500.0,0.00038356,120]
[336507772,1724886070647,-500.0,0.00038356,120]
[336507773,1724886070673,-1957.43,0.00038356,120]
[336507774,1724886070699,-1873.73,0.00038356,120]
[336507775,1724886070725,-500.0,0.00038356,120]
[336507776,1724886070753,-2848.34,0.00038356,120]
[336507777,1724886070780,-1688.12,0.00038356,120]
[336507778,1724886070809,-2526.15,0.00038356,120]
[336507779,1724886070836,-857.58,0.00038356,120]
[336507780,1724886070872,-309.92667087,0.00038356,30]
[336507781,1724886070900,-515.64,0.00038356,120]
[336507782,1724886070928,-2875.39,0.00038356,120]
[336507783,1724886070958,-763.62,0.00038356,120]
[336507784,1724886070986,-500.0,0.00038356,120]
[336507785,1724886071013,-638.29,0.00038356,120]
[336507786,1724886071039,-2094.16,0.00038356,120]
[336507787,1724886071064,-500.0,0.00038356,120]
[336507788,1724886071089,-4377.14,0.00038356,120]
[336507789,1724886071116,-1902.16,0.00038356,120]
[336507790,1724886071142,-1021.08,0.00038356,120]
[336507791,1724886071167,-1445.03,0.00038356,120]
[336507792,1724886071192,-500.0,0.00038356,120]
[336507793,1724886071217,-500.0,0.00038356,120]
[336507794,1724886071243,-817.34,0.00038356,120]
[336507795,1724886071271,-4581.92,0.00038356,120]
[336507796,1724886071296,-751.75,0.00038356,120]
[336507797,1724886071321,-500.0,0.00038356,120]
[336507798,1724886071347,-975.14,0.00038356,120]
[336507799,1724886071371,-500.0,0.00038356,120]
[336507800,1724886071396,-500.0,0.00038356,120]
[336507801,1724886071420,-3173.41,0.00038356,120]
[336507802,1724886071444,-622.86,0.00038356,120]
[336507803,1724886071469,-863.71,0.00038356,120]
[336507804,1724886071493,-2820.17,0.00038356,120]
[336507805,1724886071517,-538.32,0.00038356,120]
[336507806,1724886071545,-1983.16,0.00038356,120]
[336507807,1724886071570,-500.0,0.00038356,120]
[336507808,1724886071599,-2072.52,0.00038356,120]
[336507809,1724886071626,-500.0,0.00038356,120]
[336507810,1724886071652,-5185.97,0.00038356,120]
[336507811,1724886071676,-900.43,0.00038356,120]
[336507812,1724886071703,-500.0,0.00038356,120]
[336507813,1724886071730,-2450.02,0.00038356,120]
[336507814,1724886071758,-500.0,0.00038356,120]
[336507815,1724886071785,-500.0,0.00038356,120]
[336507816,1724886071813,-2219.02,0.00038356,120]
[336507817,1724886071995,-2951.75,0.00038356,120]
[336507818,1724886072022,-500.0,0.00038356,120]
[336507819,1724886072049,-1957.89,0.00038356,120]
[336507820,1724886072075,-524.95,0.00038356,120]
[336507821,1724886072101,-500.0,0.00038356,120]
[336507822,1724886072128,-1897.55,0.00038356,120]
[336507823,1724886072155,-1496.51,0.00038356,120]
[336507824,1724886072183,-500.0,0.00038356,120]
[336507825,1724886072210,-667.26,0.00038356,120]
[336507826,1724886072236,-500.0,0.00038356,120]
[336507827,1724886072273,-618.31,0.00038356,120]
[336507828,1724886072302,-502.07,0.00038356,120]
[336507829,1724886072330,-500.0,0.00038356,120]
[336507830,1724886072361,-702.1,0.00038356,120]
[336507831,1724886072389,-982.14,0.00038356,120]
[336507832,1724886072418,-3852.4,0.00038356,120]
[336507833,1724886072445,-1405.46,0.00038356,120]
[336507834,1724886072471,-500.0,0.00038356,120]
[336507835,1724886072500,-500.0,0.00038356,120]
[336507836,1724886072528,-500.0,0.00038356,120]
[336507837,1724886072556,-3827.11,0.00038356,120]
[336507838,1724886072584,-500.0,0.00038356,120]
[336507839,1724886072610,-500.0,0.00038356,120]
[336507840,1724886072639,-500.0,0.00038356,120]
[336507841,1724886072670,-700.52,0.00038356,120]
[336507842,1724886072698,-1745.31,0.00038356,120]
[336507843,1724886072731,-500.0,0.00038356,120]
[336507844,1724886072759,-500.0,0.00038356,120]
[336507845,1724886072788,-1884.58,0.00038356,120]
[336507846,1724886072814,-500.0,0.00038356,120]
[336507847,1724886072840,-5023.0,0.00038356,120]
[336507848,1724886072868,-1444.99,0.00038356,120]
[336507849,1724886072896,-991.34,0.00038356,120]
[336507850,1724886072925,-4408.28,0.00038356,120]
[336507851,1724886072951,-500.0,0.00038356,120]
[336507852,1724886072977,-500.0,0.00038356,120]
[336507853,1724886073002,-2115.31,0.00038356,120]
[336507854,1724886073028,-500.0,0.00038356,120]
[336507855,1724886073054,-500.0,0.00038356,120]
[336507856,1724886073080,-500.0,0.00038356,120]
[336507857,1724886073107,-500.0,0.00038356,120]
[336507858,1724886073135,-1905.86,0.00038356,120]
[336507859,1724886073162,-4180.48,0.00038356,120]
[336507860,1724886073187,-500.0,0.00038356,120]
[336507861,1724886073213,-1827.8,0.00038356,120]
[336507862,1724886073239,-847.94,0.00038356,120]
[336507863,1724886073266,-500.0,0.00038356,120]
[336507864,1724886073295,-1558.35,0.00038356,120]
[336507865,1724886073325,-1177.48,0.00038356,120]
[336507866,1724886073359,-1075.03,0.00038356,120]
[336507867,1724886073388,-2271.18,0.00038356,120]
[336507868,1724886073418,-500.53285921,0.00038356,120]
[336507869,1724886073449,-500.0,0.00038356,120]
[336507870,1724886073478,-500.0,0.00038356,120]
[336507871,1724886073505,-3151.5,0.00038356,120]
[336507872,1724886073531,-1348.64,0.00038356,120]
[336507873,1724886073556,-807.9,0.00038356,120]
[336507874,1724886073581,-500.45781927,0.00038356,120]
[336507875,1724886073611,-4982.06,0.00038356,120]
[336507876,1724886073636,-508.07115193,0.00038356,120]
[336507877,1724886073665,-688.3,0.00038356,120]
[336507878,1724886073694,-13665.63,0.00038356,120]
[336507879,1724886073725,-3805.38,0.00038356,120]
[336507880,1724886073754,-2560.73,0.00038356,120]
[336507881,1724886073781,-1172.39,0.00038356,120]
[336507882,1724886073813,-2041.34,0.00038356,120]
[336507883,1724886073842,-500.0,0.00038356,120]
[336507884,1724886073876,-777.36,0.00038356,120]
[336507885,1724886073904,-500.0,0.00038356,120]
[336507886,1724886073930,-500.0,0.00038356,120]
[336507887,1724886073957,-2416.27,0.00038356,120]
[336507888,1724886073986,-515.92,0.00038356,120]
[336507889,1724886074014,-1966.88,0.00038356,120]
[336507890,1724886074042,-2200.6,0.00038356,120]
[336507891,1724886074070,-1464.95,0.00038356,120]
[336507892,1724886074103,-680.75,0.00038356,120]
[336507893,1724886074129,-1610.62,0.00038356,120]
[336507894,1724886074156,-1802.93,0.00038356,120]
[336507895,1724886074184,-889.59,0.00038356,120]
[336507896,1724886074211,-500.0,0.00038356,120]
[336507897,1724886074240,-884.49,0.00038356,120]
[336507898,1724886074481,-564.8652802,0.00038356,120]
[336507899,1724886074511,-1518.07,0.00038356,120]
[336507900,1724886074537,-500.0,0.00038356,120]
[336507901,1724886074563,-500.0,0.00038356,120]
[336507902,1724886074589,-500.0,0.00038356,120]
[336507903,1724886074617,-500.0,0.00038356,120]
[336507904,1724886074644,-500.0,0.00038356,120]
[336507905,1724886074669,-5381.15,0.00038356,120]
[336507906,1724886074696,-2692.14,0.00038356,120]
[336507907,1724886075005,-2738.32,0.00038356,120]
[336507908,1724886075035,-500.0,0.00038356,120]
[336507909,1724886075064,-487.51440503,0.00038356,120]
[336507910,1724886075095,-500.0,0.00038356,120]
[336507911,1724886075123,-1186.74,0.00038356,120]
[336507912,1724886075150,-500.0,0.00038356,120]
[336507913,1724886075183,-4920.23,0.00038356,120]
[336507914,1724886075210,-1636.28,0.00038356,120]
[336507915,1724886075238,-1904.86,0.00038356,120]
[336507916,1724886075267,-522.47915104,0.00038356,120]
[336507917,1724886075296,-642.88029333,0.00038356,120]
[336507918,1724886075324,-500.0,0.00038356,120]
[336507919,1724886075354,-4461.11,0.00038356,120]
[336507920,1724886075380,-584.44,0.00038356,120]
[336507921,1724886075407,-2310.82,0.00038356,120]
[336507922,1724886075435,-1753.62,0.00038356,120]
[336507923,1724886075462,-874.81,0.00038356,120]
[336507924,1724886075489,-2231.81,0.00038356,120]
[336507925,1724886075517,-3697.72,0.00038356,120]
[336507926,1724886075544,-1587.02,0.00038356,120]
[336507927,1724886075571,-1128.87,0.00038356,120]
[336507928,1724886075598,-500.0,0.00038356,120]
[336507929,1724886075625,-500.0,0.00038356,120]
[336507930,1724886075651,-702.15,0.00038356,120]
[336507931,1724886075681,-500.0,0.00038356,120]
[336507932,1724886075709,-500.0,0.00038356,120]
[336507933,1724886075734,-500.0,0.00038356,30]
[336507934,1724886075762,-1272.86,0.00038356,120]
[336507935,1724886075787,-500.0,0.00038356,30]
[336507936,1724886075811,-500.0,0.00038356,30]
[336507937,1724886075839,-500.0,0.00038356,30]
[336507938,1724886075867,-914.88,0.00038356,120]
[336507939,1724886075892,-500.0,0.00038356,30]
[336507940,1724886075920,-3462.98,0.00038356,120]
[336507941,1724886075950,-501.5643919,0.00038356,30]
[336507942,1724886075977,-756.72,0.00038356,120]
[336507943,1724886076005,-500.0,0.00038356,120]
[336507944,1724886076032,-500.0,0.00038356,120]
[336507945,1724886076059,-3050.55,0.00038356,120]
[336507946,1724886076085,-500.0,0.00038356,120]
[336507947,1724886076112,-500.0,0.00038356,120]
[336507948,1724886076138,-500.0,0.00038356,120]
[336507949,1724886076165,-500.0,0.00038356,120]
[336507950,1724886076195,-500.0,0.00038356,120]
[336507951,1724886076224,-500.0,0.00038356,120]
[336507952,1724886076254,-2738.01,0.00038356,120]
[336507953,1724886076283,-500.0,0.00038356,120]
[336507954,1724886076312,-2179.6,0.00038356,120]
[336507955,1724886076340,-500.0,0.00038356,120]
[336507956,1724886076368,-2028.44,0.00038356,120]
[336507957,1724886076395,-1129.95,0.00038356,120]
[336507958,1724886076421,-2154.88,0.00038356,120]
[336507959,1724886076449,-2547.63,0.00038356,120]
[336507960,1724886076477,-501.21631677,0.00038356,120]
[336507961,1724886076506,-1664.07,0.00038356,120]
[336507962,1724886076531,-500.0,0.00038356,120]
[336507963,1724886076558,-1302.57,0.00038356,120]
[336507964,1724886076583,-227.00550614,0.00038356,120]
[336507965,1724886076608,-500.0,0.00038356,120]
[336507966,1724886076633,-500.0,0.00038356,120]
[336507967,1724886076660,-1080.41,0.00038356,120]
[336507968,1724886076685,-620.45,0.00038356,120]
[336507969,1724886076712,-1218.33,0.00038356,120]
[336507970,1724886076740,-3176.93,0.00038356,120]
[336507971,1724886076765,-2148.51,0.00038356,120]
[336507972,1724886076791,-2260.52,0.00038356,120]
[336507973,1724886076817,-532.79804885,0.00038356,120]
[336507974,1724886076844,-505.74975304,0.00038356,120]
[336507975,1724886076872,-1633.17,0.00038356,120]
[336507976,1724886076899,-2675.65,0.00038356,120]
[336507977,1724886076926,-651.82,0.00038356,120]
[336507978,1724886076954,-2530.91,0.00038356,120]
[336507979,1724886077056,-500.0,0.00038356,120]
[336507980,1724886077085,-818.49,0.00038356,120]
[336507981,1724886077117,-500.0,0.00038356,120]
[336507982,1724886077147,-500.0,0.00038356,120]
[336507983,1724886077177,-263.02699407,0.00038356,120]
[336507984,1724886077206,-3796.19,0.00038356,120]
[336507985,1724886077232,-500.0,0.00038356,120]
[336507986,1724886077260,-1143.18,0.00038356,120]
[336507987,1724886077290,-500.0,0.00038356,120]
[336507988,1724886077316,-500.0,0.00038356,120]
[336507989,1724886077344,-1884.9,0.00038356,120]
[336507990,1724886077377,-1126.3,0.00038356,120]
[336507991,1724886077404,-15165.5,0.00038356,120]
[336507992,1724886077431,-1808.21,0.00038356,120]
[336507993,1724886077458,-1729.49,0.00038356,120]
[336507994,1724886077485,-1406.33,0.00038356,120]
[336507995,1724886077511,-896.18,0.00038356,120]
[336507996,1724886077538,-500.0,0.00038356,120]
[336507997,1724886077563,-500.0,0.00038356,120]
[336507998,1724886077588,-500.0,0.00038356,120]
[336507999,1724886077615,-506.80297295,0.00038356,120]
[336508000,1724886077640,-2264.82,0.00038356,120]
[336508001,1724886077677,-750.39,0.00038356,120]
[336508002,1724886077703,-2822.94,0.00038356,120]
[336508003,1724886077731,-2606.78,0.00038356,120]
[336508004,1724886077758,-500.0,0.00038356,120]
[336508005,1724886077785,-578.02,0.00038356,120]
[336508006,1724886077810,-500.0,0.00038356,120]
[336508007,1724886077837,-4283.14,0.00038356,120]
[336508008,1724886077864,-511.54338939,0.00038356,120]
[336508009,1724886077891,-991.0,0.00038356,120]
[336508010,1724886077920,-1130.55,0.00038356,120]
[336508011,1724886077949,-500.0,0.00038356,120]
[336508012,1724886077976,-4636.4,0.00038356,120]
[336508013,1724886078004,-822.47,0.00038356,120]
[336508014,1724886078029,-500.0,0.00038356,120]
[336508015,1724886078055,-500.0,0.00038356,120]
[336508016,1724886078080,-500.0,0.00038356,120]
[336508017,1724886078108,-1604.72,0.00038356,120]
[336508018,1724886078134,-1630.01,0.00038356,120]
[336508019,1724886078160,-500.0,0.00038356,120]
[336508020,1724886078186,-590.45,0.00038356,120]
[336508021,1724886078212,-500.0,0.00038356,120]
[336508022,1724886078238,-1992.42,0.00038356,120]
[336508023,1724886078270,-513.4,0.00038356,120]
[336508024,1724886078297,-500.0,0.00038356,120]
[336508025,1724886078325,-500.0,0.00038356,120]
[336508026,1724886078353,-401.65622129,0.00038356,120]
[336508027,1724886078380,-1200.17,0.00038356,120]
[336508028,1724886078411,-500.0,0.00038356,120]
[336508029,1724886078437,-1227.48,0.00038356,120]
[336508030,1724886078465,-500.0,0.00038356,120]
[336508031,1724886078491,-500.0,0.00038356,120]
[336508032,1724886078516,-500.0,0.00038356,120]
[336508033,1724886078542,-500.0,0.00038356,120]
[336508034,1724886078568,-500.0,0.00038356,120]
[336508035,1724886078595,-947.51,0.00038356,120]
[336508036,1724886078622,-500.0,0.00038356,120]
[336508037,1724886078647,-500.0,0.00038356,120]
[336508038,1724886078677,-970.41,0.00038356,120]
[336508039,1724886078703,-2066.23,0.00038356,120]
[336508040,1724886078736,-2053.24,0.00038356,120]
[336508041,1724886078761,-500.0,0.00038356,120]
[336508042,1724886078791,-1005.16279569,0.00038356,120]
[336508043,1724886078820,-500.0,0.00038356,120]
[336508044,1724886078846,-1902.05,0.00038356,120]
[336508045,1724886078878,-775.02,0.00038356,120]
[336508046,1724886078904,-500.0,0.00038356,120]
[336508047,1724886078935,-1198.98,0.00038356,120]
[336508048,1724886078965,-1868.02,0.00038356,120]
[336508049,1724886078992,-520.97,0.00038356,120]
[336508050,1724886079018,-500.0,0.00038356,120]
[336508051,1724886079046,-500.0,0.00038356,120]
[336508052,1724886079072,-1203.1,0.00038356,120]
[336508053,1724886079099,-500.0,0.00038356,120]
[336508054,1724886079130,-500.0,0.00038356,120]
[336508055,1724886079158,-500.0,0.00038356,120]
[336508056,1724886079185,-409.37981666,0.00038356,120]
[336508057,1724886079211,-656.55,0.00038356,120]
[336508058,1724886079239,-737.24,0.00038356,120]
[336508059,1724886079269,-2003.7,0.00038356,120]
[336508060,1724886079297,-737.92,0.00038356,120]
[336508061,1724886079325,-500.0,0.00038356,120]
[336508062,1724886079354,-882.93,0.00038356,120]
[336508063,1724886079380,-2200.21,0.00038356,120]
[336508064,1724886079408,-500.0,0.00038356,120]
[336508065,1724886079436,-1781.49,0.00038356,120]
[336508066,1724886079462,-500.0,0.00038356,120]
[336508067,1724886079487,-500.0,0.00038356,120]
[336508068,1724886079515,-500.0,0.00038356,120]
[336508069,1724886079543,-501.34272152,0.00038356,120]
[336508070,1724886079568,-1795.66,0.00038356,120]
[336508071,1724886079595,-502.30002178,0.00038356,120]
[336508072,1724886079622,-2037.21,0.00038356,120]
[336508073,1724886079648,-516.91565888,0.00038356,120]
[336508074,1724886079675,-500.0,0.00038356,120]
[336508075,1724886079700,-500.0,0.00038356,120]
[336508076,1724886079726,-500.0,0.00038356,120]
[336508077,1724886079751,-856.07,0.00038356,120]
[336508078,1724886079776,-678.81,0.00038356,120]
[336508079,1724886079801,-500.0,0.00038356,120]
[336508080,1724886079827,-2021.33,0.00038356,120]
[336508081,1724886079855,-842.28,0.00038356,120]
[336508082,1724886079882,-3561.56,0.00038356,120]
[336508083,1724886079910,-1563.68,0.00038356,120]
[336508084,1724886080055,-523.98,0.00038356,120]
[336508085,1724886080084,-500.0,0.00038356,120]
[336508086,1724886080110,-500.0,0.00038356,120]
[336508087,1724886080140,-500.0,0.00038356,120]
[336508088,1724886080171,-500.0,0.00038356,120]
[336508089,1724886080201,-250.465542,0.00038356,120]
[336508090,1724886080229,-727.73,0.00038356,120]
[336508091,1724886080254,-500.0,0.00038356,120]
[336508092,1724886080286,-500.0,0.00038356,120]
[336508093,1724886080311,-633.3,0.00038356,120]
[336508094,1724886080336,-1724.83,0.00038356,120]
[336508095,1724886080362,-500.0,0.00038356,120]
[336508096,1724886080387,-500.0,0.00038356,120]
[336508097,1724886080413,-152.330078,0.00038356,120]
[336508098,1724886080441,-2406.05,0.00038356,120]
[336508099,1724886080467,-2580.18,0.00038356,120]
[336508100,1724886080492,-500.0,0.00038356,120]
[336508101,1724886080519,-500.0,0.00038356,120]
[336508102,1724886080546,-500.0,0.00038356,120]
[336508103,1724886080573,-2875.69,0.00038356,120]
[336508104,1724886080599,-1926.97,0.00038356,120]
[336508105,1724886080628,-1103.03,0.00038356,120]
[336508106,1724886080653,-500.0,0.00038356,120]
[336508107,1724886080678,-666.38,0.00038356,120]
[336508108,1724886080704,-500.0,0.00038356,120]
[336508109,1724886080728,-502.85227468,0.00038356,120]
[336508110,1724886080753,-500.0,0.00038356,120]
[336508111,1724886080779,-500.0,0.00038356,120]
[336508112,1724886080804,-500.0,0.00038356,120]
[336508113,1724886080830,-500.0,0.00038356,120]
[336508114,1724886080860,-4537.85,0.00038356,120]
[336508115,1724886080888,-500.0,0.00038356,120]
[336508116,1724886080913,-500.0,0.00038356,120]
[336508117,1724886080940,-616.83,0.00038356,120]
[336508118,1724886080965,-500.0,0.00038356,120]
[336508119,1724886080992,-2590.19,0.00038356,120]
[336508120,1724886081019,-637.96,0.00038356,120]
[336508121,1724886081046,-592.98,0.00038356,120]
[336508122,1724886081075,-209.36441941,0.00038356,120]
[336508123,1724886081107,-1452.52,0.00038356,120]
[336508124,1724886081149,-3847.19,0.00038356,120]
[336508125,1724886081178,-1060.29,0.00038356,120]
[336508126,1724886081205,-500.0,0.00038356,120]
[336508127,1724886081233,-2206.8,0.00038356,120]
[336508128,1724886081264,-539.08,0.00038356,120]
[336508129,1724886081293,-500.0,0.00038356,120]
[336508130,1724886081320,-1387.41,0.00038356,120]
[336508131,1724886081348,-500.0,0.00038356,120]
[336508132,1724886081381,-554.78,0.00038356,120]
[336508133,1724886081408,-544.47,0.00038356,120]
[336508134,1724886081436,-1991.52,0.00038356,120]
[336508135,1724886081470,-500.0,0.00038356,120]
[336508136,1724886081497,-1270.9,0.00038356,120]
[336508137,1724886081523,-1867.99,0.00038356,120]
[336508138,1724886081550,-520.58,0.00038356,120]
[336508139,1724886081577,-500.0,0.00038356,120]
[336508140,1724886081609,-1561.85,0.00038356,120]
[336508141,1724886081635,-500.0,0.00038356,120]
[336508142,1724886081663,-2072.63,0.00038356,120]
[336508143,1724886081691,-510.12815039,0.00038356,120]
[336508144,1724886081718,-500.0,0.00038356,120]
[336508145,1724886081746,-627.52054908,0.00038356,120]
[336508146,1724886081774,-1839.77,0.00038356,120]
[336508147,1724886081801,-662.84,0.00038356,120]
[336508148,1724886081828,-500.0,0.00038356,120]
[336508149,1724886081856,-500.0,0.00038356,120]
[336508150,1724886081884,-500.0,0.00038356,120]
[336508151,1724886081911,-500.0,0.00038356,120]
[336508152,1724886081940,-500.0,0.00038356,120]
[336508153,1724886081968,-2311.37,0.00038356,120]
[336508154,1724886081996,-1383.46,0.00038356,120]
[336508155,1724886082023,-1237.75,0.00038356,120]
[336508156,1724886082051,-2049.02,0.00038356,120]
[336508157,1724886082081,-150.0,0.00038395,120]
[336508158,1724886082110,-5004.96428,0.000384,30]
[336508159,1724886082137,-474.0041345,0.000384,33]
[336508160,1724886082169,-500.0,0.0003863,120]
[336508161,1724886082198,-500.0,0.0003863,120]
[336508162,1724886082227,-356.33915925,0.0003863,120]
[336508163,1724886082255,-500.0,0.0003863,120]
[336508164,1724886082286,-155.82,0.0003863,120]
[336508165,1724886082314,-600.47,0.0003863,120]
[336508166,1724886082342,-500.0,0.0003863,120]
[336508167,1724886082372,-500.0,0.0003863,120]
[336508168,1724886082401,-500.0,0.0003863,120]
[336508169,1724886082429,-500.0,0.0003863,120]
[336508170,1724886082457,-500.0,0.0003863,120]
[336508171,1724886082484,-500.0,0.0003863,120]
[336508172,1724886082511,-560.05,0.0003863,120]
[336508173,1724886082823,-2997.01,0.0003863,120]
[336508174,1724886082850,-500.0,0.0003863,120]
[336508175,1724886082878,-1838.19,0.0003863,120]
[336508176,1724886082905,-500.0,0.0003863,120]
[336508177,1724886082931,-396.95,0.0003863,120]
[336508178,1724886082957,-1731.8,0.0003863,120]
[336508179,1724886082984,-500.0,0.0003863,120]
[336508180,1724886083010,-694.65,0.0003863,120]
[336508181,1724886083037,-1091.94,0.0003863,120]
[336508182,1724886083064,-3870.37,0.0003863,120]
[336508183,1724886083090,-902.42,0.0003863,120]
[336508184,1724886083117,-500.0,0.0003863,120]
[336508185,1724886083144,-4019.78,0.0003863,120]
[336508186,1724886083172,-3115.98,0.0003863,120]
[336508187,1724886083199,-500.0,0.0003863,120]
[336508188,1724886083226,-500.0,0.0003863,120]
[336508189,1724886083253,-610.54,0.0003863,120]
[336508190,1724886083284,-1670.06,0.0003863,120]
[336508191,1724886083315,-715.66,0.0003863,120]
[336508192,1724886083343,-654.17,0.0003863,120]
[336508193,1724886083376,-690.26,0.0003863,120]
[336508194,1724886083404,-500.0,0.0003863,120]
[336508195,1724886083430,-500.0,0.0003863,120]
[336508196,1724886083457,-3579.81,0.0003863,120]
[336508197,1724886083488,-557.91,0.0003863,120]
[336508198,1724886083516,-500.0,0.0003863,120]
[336508199,1724886083543,-1770.22,0.0003863,120]
[336508200,1724886083570,-725.33,0.0003863,120]
[336508201,1724886083599,-1101.4,0.0003863,120]
[336508202,1724886083626,-1339.63,0.0003863,120]
[336508203,1724886083653,-500.0,0.0003863,120]
[336508204,1724886083682,-575.45,0.0003863,120]
[336508205,1724886083710,-500.0,0.0003863,120]
[336508206,1724886083738,-500.0,0.0003863,120]
[336508207,1724886083763,-1147.76,0.0003863,120]
[336508208,1724886083788,-864.87,0.0003863,120]
[336508209,1724886083816,-734.35,0.0003863,120]
[336508210,1724886083842,-500.0,0.0003863,120]
[336508211,1724886083872,-1201.5,0.0003863,120]
[336508212,1724886083899,-4258.55,0.0003863,120]
[336508213,1724886083925,-1369.79,0.0003863,120]
[336508214,1724886083953,-500.0,0.0003863,120]
[336508215,1724886083982,-500.0,0.0003863,120]
[336508216,1724886084009,-161.11129237,0.0003863,120]
[336508217,1724886084036,-500.0,0.0003863,120]
[336508218,1724886084064,-1370.96,0.0003863,120]
[336508219,1724886084093,-500.0,0.0003863,120]
[336508220,1724886084123,-1208.19,0.0003863,120]
[336508221,1724886084151,-500.0,0.0003863,120]
[336508222,1724886084179,-533.06,0.0003863,120]
[336508223,1724886084208,-551.99,0.0003863,120]
[336508224,1724886084235,-500.0,0.0003863,120]
[336508225,1724886084265,-916.66,0.0003863,120]
[336508226,1724886084293,-1754.5,0.0003863,120]
[336508227,1724886084321,-500.0,0.0003863,120]
[336508228,1724886084351,-500.0,0.0003863,120]
[336508229,1724886084387,-2599.97,0.0003863,120]
[336508230,1724886084415,-500.0,0.0003863,120]
[336508231,1724886084445,-500.0,0.0003863,120]
[336508232,1724886084471,-500.0,0.0003863,120]
[336508233,1724886084498,-500.0,0.0003863,120]
[336508234,1724886084524,-2482.47,0.0003863,120]
[336508235,1724886084550,-732.18,0.0003863,120]
[336508236,1724886084576,-500.0,0.0003863,120]
[336508237,1724886084603,-500.0,0.0003863,120]
[336508238,1724886084639,-500.0,0.0003863,120]
[336508239,1724886084668,-500.0,0.0003863,120]
[336508240,1724886084697,-926.61,0.0003863,120]
[336508241,1724886084727,-1459.18,0.0003863,120]
[336508242,1724886084755,-583.51,0.0003863,120]
[336508243,1724886084785,-703.97,0.0003863,120]
[336508244,1724886084813,-1237.13,0.0003863,120]
[336508245,1724886084918,-2076.73,0.0003863,120]
[336508246,1724886084945,-652.83,0.0003863,120]
[336508247,1724886084972,-3514.67,0.0003863,120]
[336508248,1724886085000,-520.95248449,0.0003863,120]
[336508249,1724886085027,-727.0,0.0003863,120]
[336508250,1724886085055,-500.0,0.0003863,120]
[336508251,1724886085084,-928.47,0.0003863,120]
[336508252,1724886085116,-500.0,0.0003863,120]
[336508253,1724886085145,-4774.12,0.0003863,120]